Workbook

Sheet INTRODUCTION
A1: PROJECT FINANCE MODELING
A3: PHILIPPE DUCHEMIN | D3: 2020-12-01 | G3: Color Codes
H5: Input Cell with link to INPUT TABLE
H6: Input Cell without link to INPUT TABLE
B7: MODELLING | H7: Input Cell calculated
H9: CASH FLOW STATEMENT
H10: INCOME STATEMENT
A11: 1 | B11: OPERATIONS CASH FLOW BEF TAXES | E11: =RETURN!B10 ->  | H11: BALANCE SHEET
A12: 2 | B12: OPEARATIONS CASH FLOW AFTER TAXES | E12: =RETURN!B12 -> 
A13: 3 | B13: OPERATIONS ACCOUNTING BEF TAXES | E13: =RETURN!B18 ->  | H13: SCENARIO CELL
A14: 4 | B14: OPERATIONS ACCOUNTING AFTER TAXES | E14: =RETURN!B20 -> 
A15: 5 | B15: PROJECT ACCOUNTING BEFORE TAXES | E15: =RETURN!B32 -> 
A16: 6 | B16: PROJECT ACCOUNTING AFTER TAXES | E16: =RETURN!B34 -> 
A17: 7 | B17: ROE | E17: =RETURN!B42 -> 0
A18: 8 | B18: DEBT RETURN | E18: =RETURN!B48 -> 0
A19: 9 | B19: FINANCE - WACC | E19: =+RETURN!B64 -> 
A20: 10 | B20: PLCR Mini | E20: =+MODELING!E255 -> 
A21: 11 | B21: PLCR Average | E21: =+MODELING!E256 -> 
A22: 12 | B22: LLCR Mini | E22: =+MODELING!H255 -> 
A23: 13 | B23: LLCR Average | E23: =+MODELING!H256 -> 
A24: 14 | B24: DSCR Mini | E24: =+MODELING!K255 -> 
A25: 15 | B25: DSCR Average | E25: =+MODELING!K256 -> 
A26: 16 | B26: Pay Back | E26: =+RETURN!C103 -> 0
A27: 17 | B27: OPERATIONS CASH FLOW BEF TAXES | E27: =RETURN!A10 -> 0
A28: 18 | B28: OPEARATIONS CASH FLOW AFTER TAXES | E28: =RETURN!A12 -> 0
A29: 19 | B29: OPERATIONS ACCOUNTING BEF TAXES | E29: =RETURN!A18 -> 0
A30: 20 | B30: OPERATIONS ACCOUNTING AFTER TAXES | E30: =RETURN!A20 -> 0
A31: 21 | B31: PROJECT ACCOUNTING BEFORE TAXES | E31: =RETURN!A32 -> 0
A32: 22 | B32: PROJECT ACCOUNTING AFTER TAXES | E32: =RETURN!A34 -> 0
A33: 23 | B33: ROE NPV | E33: =RETURN!A42 -> 8851670.578
A34: 24 | B34: DEBT NPV | E34: =RETURN!A48 -> 11972513.05
A35: 25 | B35: FINANCE NPV | E35: =RETURN!A64 -> 0

Sheet MODELING
A1: OIL MODELING
C2: =SIMULATIONS!U4 -> 1
A3: Calendar Year | C3: Year | D3: 2020 | E3: =D3+1 -> 2021 | F3: =E3+1 -> 2022 | G3: 2023 | H3: 2024 | I3: 2025 | J3: 2026 | K3: 2027
A4: Durations | C4: Duration | D4: 1 | E4: =D4+1 -> 2 | F4: 3 | G4: 4 | H4: 5 | I4: 6 | J4: 7 | K4: 8
A5: Construction | B5: year | C5: DurationConst | D5: 1 | E5: =D5 -> 1 | F5: 1 | G5: 1 | H5: 1 | I5: 1 | J5: 1 | K5: 1
A6: Production | B6: year | C6: DurationProd | D6: 6 | E6: 6 | F6: 6 | G6: 6 | H6: 6 | I6: 6 | J6: 6 | K6: 6
A7: Termination | B7: year | C7: DurationTerm | D7: 1 | E7: 1 | F7: 1 | G7: 1 | H7: 1 | I7: 1 | J7: 1 | K7: 1
A8: Project | B8: year | C8: DurationProject | D8: =D5+D6+D7 -> 8 | E8: 8 | F8: 8 | G8: 8 | H8: 8 | I8: 8 | J8: 8 | K8: 8
A9: Inflation | B9: % | C9: RateInflation | D9: =INDEX(TSCE,CSCE,$L9) -> 0.03 | E9: =D9 -> 0.03 | F9: 0.03 | G9: 0.03 | H9: 0.03 | I9: 0.03 | J9: 0.03 | K9: 0.03 | L9: 1
A10: Prices
A11: Initial Price | B11: usd | C11: PriceOil | D11: =INDEX(TSCE,CSCE,$L11) -> 18 | E11: =D11 -> 18 | F11: =E11 -> 18 | G11: 18 | H11: 18 | I11: 18 | J11: 18 | K11: 18 | L11: 2
A12: Production
A13: Capacity | B13: barrel/day | C13: Capacity | D13: 0 | E13: 4000 | F13: =E13 -> 4000 | G13: 6000 | H13: 6000 | I13: 6000 | J13: 6000 | K13: 0
A14: Availability | B14: days | C14: Availability | D14: =INDEX(TSCE,CSCE,$L14) -> 365 | E14: =D14 -> 365 | F14: 365 | G14: 365 | H14: 365 | I14: 365 | J14: 365 | K14: 365 | L14: 3
A15: Costs
A16: Fix | B16: usd | C16: CostFix | D16: =INDEX(TSCE,CSCE,$L16) -> 10000000 | E16: =D16 -> 10000000 | F16: =E16 -> 10000000 | G16: =F16 -> 10000000 | H16: =G16 -> 10000000 | I16: =H16 -> 10000000 | J16: =I16 -> 10000000 | K16: =J16 -> 10000000 | L16: 4
A17: Variable | B17: usd/barrel | C17: CostVar | D17: =INDEX(TSCE,CSCE,$L17) -> 4 | E17: =D17 -> 4 | F17: =E17 -> 4 | G17: 4 | H17: 4 | I17: 4 | J17: =I17 -> 4 | K17: =J17 -> 4 | L17: 5
A18: Construction
A19: Profile | B19: usd | C19: Capex | D19: 40000000 | E19: 10000000 | F19: 10000000 | G19: 0 | H19: 0 | I19: 0 | J19: 0 | K19: 10000000
A20: Debt | B20: usd | C20: Capfi | D20: 50000000 | E20: -10000000 | F20: -10000000 | G20: -10000000 | H20: -10000000 | I20: 0 | J20: 0 | K20: -10000000
A21: Equity | B21: usd | C21: Equity | D21: 20000000 | E21: 0 | F21: 0 | G21: 0 | H21: 0 | I21: 0 | J21: 0 | K21: -20000000 | M21: part d'Equity dans le capex
A22: Amortization Fixed Assets
A23: Construction | B23: year | C23: AmoConst | D23: =INDEX(TSCE,CSCE,$L23) -> 5 | E23: =D23 -> 5 | F23: 5 | G23: 5 | H23: 5 | I23: 5 | J23: 5 | K23: 5 | L23: 6
A24: Operation | B24: year | C24: AmoProd | D24: =INDEX(TSCE,CSCE,$L24) -> 4 | E24: 4 | F24: 4 | G24: 4 | H24: 4 | I24: 4 | J24: 4 | K24: 4 | L24: 7
A25: Termination | B25: year | C25: AmoTerm | D25: =INDEX(TSCE,CSCE,$L25) -> 1 | E25: 1 | F25: 1 | G25: 1 | H25: 1 | I25: 1 | J25: 1 | K25: 1 | L25: 8
A26: Working Capital
A27: Collect | B27: days | C27: DelaysCashIn | D27: =INDEX(TSCE,CSCE,$L27) -> 30 | E27: =D27 -> 30 | F27: =E27 -> 30 | G27: 30 | H27: 30 | I27: 30 | J27: 30 | K27: 30 | L27: 9
A28: Payments | B28: days | C28: DelaysCashOut | D28: =INDEX(TSCE,CSCE,$L28) -> 7 | E28: =D28 -> 7 | F28: 7 | G28: 7 | H28: 7 | I28: 7 | J28: 7 | K28: 7 | L28: 10
A29: Funding | M29: Tx d'augmentation du Capex, pour financement
A30: Debt | B30: year | C30: YearDebt | D30: =INDEX(TSCE,CSCE,$L30) -> 5 | E30: =D30 -> 5 | F30: 5 | G30: 5 | H30: 5 | I30: 5 | J30: 5 | K30: 5 | L30: 11
A31: Rate | B31: % | C31: RateDebt | D31: =INDEX(TSCE,CSCE,$L31) -> 0.07 | E31: 0.07 | F31: 0.07 | G31: 0.07 | H31: 0.07 | I31: 0.07 | J31: 0.07 | K31: 0.07 | L31: 12
A32: Short Term | B32: % | C32: RateDeposit | D32: =INDEX(TSCE,CSCE,$L32) -> 0.05 | E32: 0.05 | F32: 0.05 | G32: 0.05 | H32: 0.05 | I32: 0.05 | J32: 0.05 | K32: 0.05 | L32: 13
A33: Short Term | B33: % | C33: RateFunding | D33: =INDEX(TSCE,CSCE,$L33) -> 0.1 | E33: 0.1 | F33: 0.1 | G33: 0.1 | H33: 0.1 | I33: 0.1 | J33: 0.1 | K33: 0.1 | L33: 14
A34: Tax Reserve Dividend
A35: CompTax | B35: % | C35: TaxCorp | D35: =INDEX(TSCE,CSCE,$L35) -> 0.25 | E35: =D35 -> 0.25 | F35: =E35 -> 0.25 | G35: 0.25 | H35: 0.25 | I35: 0.25 | J35: 0.25 | K35: 0.25 | L35: 15
A36: Reserve | B36: % | C36: RateReserve | D36: =INDEX(TSCE,CSCE,$L36) -> 1 | E36: =D36 -> 1 | F36: 1 | G36: 1 | H36: 1 | I36: 1 | J36: 1 | K36: 1 | L36: 16
B37: year | C37: YearReserve | D37: =INDEX(TSCE,CSCE,$L37) -> 2 | E37: 2 | F37: 2 | G37: 2 | H37: 2 | I37: 2 | J37: 2 | K37: 2 | L37: 17
A38: Dividend | B38: % | C38: RateDividend | D38: =INDEX(TSCE,CSCE,$L38) -> 1 | E38: 1 | F38: 1 | G38: 1 | H38: 1 | I38: 1 | J38: 1 | K38: 1 | L38: 18
A39: NPV
A40: Discount Factor | C40: DF | D40: =INDEX(TSCE,CSCE,$L40) -> 0.1 | E40: =D40 -> 0.1 | F40: 0.1 | G40: 0.1 | H40: 0.1 | I40: 0.1 | J40: 0.1 | K40: 0.1 | L40: 19
A42: PROJECT
A44: YEARS | C44: Year | D44: =INDIRECT($C44) -> 2020 | E44: =INDIRECT($C44) -> 2021 | F44: 2022 | G44: 2023 | H44: 2024 | I44: 2025 | J44: 2026 | K44: 2027
C45: YearConst | D45: =--(Duration<=DurationConst) -> 1 | E45: =--(Duration<=DurationConst) -> 0 | F45: 0 | G45: 0 | H45: 0 | I45: 0 | J45: 0 | K45: 0 | M45: =_xlfn.FORMULATEXT(K45) -> =--(Duration<=DurationConst)
C46: YearProd | D46: =--(Duration>DurationConst)*(Duration<=DurationProd+DurationConst) -> 0 | E46: 1 | F46: 1 | G46: 1 | H46: 1 | I46: 1 | J46: 1 | K46: 0 | M46: =_xlfn.FORMULATEXT(K46) -> =--(Duration>DurationConst)*(Duration<=DurationProd+DurationConst)
C47: YearTerm | D47: =--(Duration>DurationConst+DurationProd) -> 0 | E47: 0 | F47: 0 | G47: 0 | H47: 0 | I47: 0 | J47: 0 | K47: 1 | M47: =_xlfn.FORMULATEXT(K47) -> =--(Duration>DurationConst+DurationProd)
C49: RateInflation | D49: =INDIRECT($C49) -> 0.03 | E49: =INDIRECT($C49) -> 0.03 | F49: 0.03 | G49: 0.03 | H49: 0.03 | I49: 0.03 | J49: 0.03 | K49: 0.03
D50: 1 | E50: =D50*(1+E49) -> 1.03 | F50: =E50*(1+F49) -> 1.0609 | G50: 1.092727 | H50: 1.12550881 | I50: 1.159274074 | J50: 1.194052297 | K50: 1.229873865 | L50: Infla | M50: =_xlfn.FORMULATEXT(K50) -> =J50*(1+K49)
A52: REVENUE | B52: barrel/day | C52: Capacity
B53: days | C53: Availability
B54: barrel/year | L54: Production | M54: =_xlfn.FORMULATEXT(K54) -> 
C55: PriceOil
L56: Price | M56: =_xlfn.FORMULATEXT(K56) -> 
C57: =NPV(0.1,D57:J57)*1.1 -> 0 | L57: Revenues | M57: =_xlfn.FORMULATEXT(K57) -> 
A59: COSTS | C59: CostFix
L60: CoFix
C61: CostVar
L62: CoVar | M62: =_xlfn.FORMULATEXT(K62) -> 
C63: ENV | L63: CoEN | M63: =_xlfn.FORMULATEXT(K63) -> 
C64: =NPV(0.1,D64:J64)*1.1 -> 0 | L64: Cost | M64: =_xlfn.FORMULATEXT(K64) -> 
A66: WORKING CAPITAL | C66: DelaysCashIn
L67: WcPay | M67: =_xlfn.FORMULATEXT(K67) -> 
C68: DelaysCashOut
L69: WcRec | M69: =_xlfn.FORMULATEXT(K69) -> 
L70: WcNeed | M70: =_xlfn.FORMULATEXT(K70) -> 
C71: =NPV(0.1,D71:J71)*1.1 -> 0 | L71: WcVar
A73: INVESTMENT | C73: Capex
L74: CapConst | M74: =_xlfn.FORMULATEXT(K74) -> 
L75: CapProd
L76: CapTerm
C77: =NPV(0.1,D77:J77)*1.1 -> 0 | L77: CFCapex | M77: =_xlfn.FORMULATEXT(K77) -> 
L78: CapexCum | M78: =_xlfn.FORMULATEXT(K78) -> 
A80: AMORTIZATION | L80: AmConst
L81: AmProd
L82: AmTerm
L83: CapNet
C85: =NPV(0.1,D85:J85)*1.1 -> 0 | L85: Amort
L87: FixedAssetNet
A88: TAXES | C88: on CA | L88: TxCA | M88: =_xlfn.FORMULATEXT(K88) -> 
C89: on CAPEX | L89: TxCAP
L90: TAX
A92: FINANCING
A93: Equity | C93: Equity | M93: =_xlfn.FORMULATEXT(K93) -> 
L94: Eq
A95: CapitalNeed | C95: Capfi | M95: =_xlfn.FORMULATEXT(K95) -> 
L96: Dt | M96: =_xlfn.FORMULATEXT(K96) -> 
L97: PeriodDevCum
A98: Constant | C98: Repayment | L98: AmoVarDev | M98: =_xlfn.FORMULATEXT(K98) -> 
C99: OutstandingC | L99: CrdVarDev
C100: Interest | L100: IntVarDev
C101: Installment | L101: EchVarDev
C102: =IRR(FluxVarDev) ->  | L102: FluxVarDev
A103: DSCR | C103: DSCRnum | L103: DscrDev
C104: Repayment | L104: AmoDSDev
C105: OutstandingC | L105: CrdDSDev
C106: Interest | L106: IntDSDev
C107: Installment | L107: EchDSDev
C108: =IRR(FluxDSDev) ->  | L108: FluxDSDev
C110: UsBqExp
L111: PeriodExp | M111: =_xlfn.FORMULATEXT(K111) -> 
A112: DEBTEXP | L112: EncBqExp
A113: Linear | C113: Repayment | L113: AmoLinExp
C114: OutstandingC | L114: CrdLinExp
C115: Interest | L115: IntLinExp
C116: Installment | L116: EchLinExp
C117: =IRR(FluxLinExp) ->  | L117: FluxLinExp
L118: PeriodExpCum
A119: Constant | C119: Repayment | L119: AmoVarExp | M119: =_xlfn.FORMULATEXT(K119) -> 
C120: OutstandingC | L120: CrdVarExp
C121: Interest | L121: IntVarExp
C122: Installment | L122: EchVarExp
C123: =IRR(FluxVarExp) ->  | L123: FluxVarExp
A124: DSCR | C124: DSCRnum | L124: DscrExp
C125: Repayment | L125: AmoDSExp
C126: OutstandingC | L126: CrdDSExp
C127: Interest | L127: IntDSExp
C128: Installment | L128: EchDSExp
C129: =IRR(FluxDSExp) ->  | L129: FluxDSExp
C131: UsBqCom
L132: PeriodCom | M132: =_xlfn.FORMULATEXT(K132) -> 
A133: DEBTCOM | L133: EncBqCom
A134: Linear | C134: Repayment | L134: AmoLinCom
C135: OutstandingC | L135: CrdLinCom
C136: Interest | L136: IntLinCom
C137: Installment | L137: EchLinCom
C138: =IRR(FluxLinCom) ->  | L138: FluxLinCom
L139: PeriodComCum
A140: Constant | C140: Repayment | L140: AmoVarCom | M140: =_xlfn.FORMULATEXT(K140) -> 
C141: OutstandingC | L141: CrdVarCom
C142: Interest | L142: IntVarCom
C143: Installment | L143: EchVarCom
C144: =IRR(FluxVarCom) ->  | L144: FluxVarCom
A145: DSCR | C145: DSCRnum | L145: DscrCom
C146: Repayment | L146: AmoDSCom
C147: OutstandingC | L147: CrdDSCom
C148: Interest | L148: IntDSCom
C149: Installment | L149: EchDSCom
C150: =IRR(FluxDSCom) ->  | L150: FluxDSCom
A151: Interest | C151: =NPV(0.07,D151:J151)*1.07 -> 0 | L151: IntLT | N151: =SUM(IntLT) -> 0
A152: Control | C152: =IRR(D152:K152) -> 
A154: TAX CORP | C154: PLBEFTAX
L155: PLBEFTAXCUM
L157: TAXCO
L159: TAXCOPAY
L160: WCTAX
L161: CFWCTAX
A163: DIVIDEND | C163: RATEDIVIDEND
C164: PLAFTERTAX
C166: CFBEFDIV
L168: DIVIDEND
L169: DIVIDENDPAY
L170: WCDIV
L171: CFWCDIV
A173: CASH ACCOUNTS | L173: POSINT
L174: NEGINT
L176: INTST
A178: CASH FLOW STATEMENT
C180: REVENUES | D180: =INDIRECT($C180) -> 0 | E180: 0 | F180: 0 | G180: 0 | H180: 0 | I180: 0 | J180: 0 | K180: 0
C181: COST | D181: 0 | E181: 0 | F181: 0 | G181: 0 | H181: 0 | I181: 0 | J181: 0 | K181: 0
C182: WCVAR | D182: 0 | E182: 0 | F182: 0 | G182: 0 | H182: 0 | I182: 0 | J182: 0 | K182: 0
C183: CFCAPEX | D183: 0 | E183: 0 | F183: 0 | G183: 0 | H183: 0 | I183: 0 | J183: 0 | K183: 0
D184: =SUM(D180:D183) -> 0 | E184: =SUM(E180:E183) -> 0 | F184: 0 | G184: 0 | H184: 0 | I184: 0 | J184: 0 | K184: 0 | L184: CFOP
C185: EQUITY | D185: =INDIRECT($C185) -> 20000000 | E185: 0 | F185: 0 | G185: 0 | H185: 0 | I185: 0 | J185: 0 | K185: -20000000
C186: CAPFI | D186: 50000000 | E186: -10000000 | F186: -10000000 | G186: -10000000 | H186: -10000000 | I186: 0 | J186: 0 | K186: -10000000
C187: INTLT | D187: 0 | E187: 0 | F187: 0 | G187: 0 | H187: 0 | I187: 0 | J187: 0 | K187: 0
D188: =SUM(D184:D187) -> 70000000 | E188: =SUM(E184:E187) -> -10000000 | F188: -10000000 | G188: -10000000 | H188: -10000000 | I188: 0 | J188: 0 | K188: -30000000 | L188: CFBEFTAX
C189: INTST | D189: =INDIRECT($C189) -> 0 | E189: 0 | F189: 0 | G189: 0 | H189: 0 | I189: 0 | J189: 0 | K189: 0
C190: TAXCOPAY | D190: 0 | E190: 0 | F190: 0 | G190: 0 | H190: 0 | I190: 0 | J190: 0 | K190: 0
D191: =SUM(D188:D190) -> 70000000 | E191: -10000000 | F191: -10000000 | G191: -10000000 | H191: -10000000 | I191: 0 | J191: 0 | K191: -30000000 | L191: CFBEFDIV
C192: DIVIDENDPAY | D192: =INDIRECT($C192) -> 0 | E192: 0 | F192: 0 | G192: 0 | H192: 0 | I192: 0 | J192: 0 | K192: 0
D193: =SUM(D191:D192) -> 70000000 | E193: =SUM(E191:E192) -> -10000000 | F193: -10000000 | G193: -10000000 | H193: -10000000 | I193: 0 | J193: 0 | K193: -30000000 | L193: CF
D195: =D193 -> 70000000 | E195: =D195+E193 -> 60000000 | F195: =E195+F193 -> 50000000 | G195: =F195+G193 -> 40000000 | H195: =G195+H193 -> 30000000 | I195: =H195+I193 -> 30000000 | J195: =I195+J193 -> 30000000 | K195: =J195+K193 -> 0 | L195: CASHBALANCE
D196: =IF(D195>0,D195,0) -> 70000000 | E196: 60000000 | F196: 50000000 | G196: =IF(G195>0,G195,0) -> 40000000 | H196: =IF(H195>0,H195,0) -> 30000000 | I196: 30000000 | J196: 30000000 | K196: 0 | L196: POSBAL
D197: =IF(D195<0,-D195,0) -> 0 | E197: 0 | F197: 0 | G197: =IF(G195<0,-G195,0) -> 0 | H197: =IF(H195<0,-H195,0) -> 0 | I197: 0 | J197: 0 | K197: 0 | L197: NEGBAL
A200: INCOME STATEMENT
C202: REVENUES | D202: =Revenues -> 0 | E202: 0 | F202: 0 | G202: 0 | H202: 0 | I202: 0 | J202: 0 | K202: 0
C203: COST | D203: =INDIRECT($C203) -> 0 | E203: 0 | F203: 0 | G203: 0 | H203: 0 | I203: 0 | J203: 0 | K203: 0
C204: AMORT | D204: 0 | E204: 0 | F204: 0 | G204: 0 | H204: 0 | I204: 0 | J204: 0 | K204: 0
D205: =SUM(D202:D204) -> 0 | E205: 0 | F205: 0 | G205: 0 | H205: 0 | I205: 0 | J205: 0 | K205: 0 | L205: PLPROD
C206: INTLT | D206: =INDIRECT($C206) -> 0 | E206: 0 | F206: 0 | G206: 0 | H206: 0 | I206: 0 | J206: 0 | K206: 0
C207: INTST | D207: 0 | E207: 0 | F207: 0 | G207: 0 | H207: 0 | I207: 0 | J207: 0 | K207: 0
D208: =SUM(D205:D207) -> 0 | E208: =SUM(E205:E207) -> 0 | F208: 0 | G208: 0 | H208: 0 | I208: 0 | J208: 0 | K208: 0 | L208: PLBEFTAX
C209: TAXCO | D209: =INDIRECT($C209) -> 0 | E209: 0 | F209: 0 | G209: 0 | H209: 0 | I209: 0 | J209: 0 | K209: 0
D210: =D208+D209 -> 0 | E210: 0 | F210: 0 | G210: 0 | H210: 0 | I210: 0 | J210: 0 | K210: 0 | L210: PLAFTERTAX
C211: DIVIDEND | D211: =INDIRECT($C211) -> 0 | E211: 0 | F211: 0 | G211: 0 | H211: 0 | I211: 0 | J211: 0 | K211: 0
D212: =D210+D211 -> 0 | E212: =E210+E211 -> 0 | F212: 0 | G212: 0 | H212: 0 | I212: 0 | J212: 0 | K212: 0
C213: CUMPL | D213: =D212 -> 0 | E213: =D213+E212 -> 0 | F213: =E213+F212 -> 0 | G213: 0 | H213: 0 | I213: 0 | J213: 0 | K213: 0
A215: BALANCE SHEET
A217: ASSETS
C218: FIXEDASSETNET | D218: =INDIRECT($C218) -> 0 | E218: 0 | F218: 0 | G218: 0 | H218: 0 | I218: 0 | J218: 0 | K218: 0
C219: POSBAL | D219: 70000000 | E219: 60000000 | F219: 50000000 | G219: 40000000 | H219: 30000000 | I219: 30000000 | J219: 30000000 | K219: 0
C220: WCPAY | D220: 0 | E220: 0 | F220: 0 | G220: 0 | H220: 0 | I220: 0 | J220: 0 | K220: 0
D221: =SUM(D218:D220) -> 70000000 | E221: 60000000 | F221: 50000000 | G221: 40000000 | H221: 30000000 | I221: 30000000 | J221: 30000000 | K221: 0
B223: LIABILITIES
C224: NEGBAL | D224: =INDIRECT($C224) -> 0 | E224: 0 | F224: 0 | G224: 0 | H224: 0 | I224: 0 | J224: 0 | K224: 0
C225: DT | D225: 0 | E225: 0 | F225: 0 | G225: 0 | H225: 0 | I225: 0 | J225: 0 | K225: 0
C226: WCREC | D226: 0 | E226: 0 | F226: 0 | G226: 0 | H226: 0 | I226: 0 | J226: 0 | K226: 0
C227: WCTAX | D227: 0 | E227: 0 | F227: 0 | G227: 0 | H227: 0 | I227: 0 | J227: 0 | K227: 0
C228: WCDIV | D228: 0 | E228: 0 | F228: 0 | G228: 0 | H228: 0 | I228: 0 | J228: 0 | K228: 0
C229: EQ | D229: 0 | E229: 0 | F229: 0 | G229: 0 | H229: 0 | I229: 0 | J229: 0 | K229: 0
C230: CUMPL | D230: 0 | E230: 0 | F230: 0 | G230: 0 | H230: 0 | I230: 0 | J230: 0 | K230: 0
... 21 more rows

Sheet RETURN
A1: RETURN ANALYSIS
A3: WACC | B3: =+D6 -> 0.1
C4: year | D4: =INDIRECT($C4) -> 2020 | E4: 2021 | F4: 2022 | G4: 2023 | H4: 2024 | I4: 2025 | J4: 2026 | K4: 2027
C5: duration | D5: 1 | E5: 2 | F5: 3 | G5: 4 | H5: 5 | I5: 6 | J5: 7 | K5: 8
C6: DF | D6: 0.1 | E6: 0.1 | F6: 0.1 | G6: 0.1 | H6: 0.1 | I6: 0.1 | J6: 0.1 | K6: 0.1
A8: OPERATIONS CASH FLOW | M8: SOMME
A9: NPV | B9: IRR | C9: SUM
A10: =NPV(WACC,D10:K10) -> 0 | B10: =IRR(D10:K10) ->  | C10: CFOP | D10: =INDIRECT($C10) -> 0 | E10: 0 | F10: 0 | G10: 0 | H10: 0 | I10: 0 | J10: 0 | K10: 0
A11: =NPV(WACC,D11:K11) -> 0 | C11: TaxCorp | D11: =-PLPROD*TaxCorp -> 0 | E11: 0 | F11: 0 | G11: 0 | H11: 0 | I11: =-PLPROD*TaxCorp -> 0 | J11: 0 | K11: 0
A12: =NPV(WACC,D12:K12) -> 0 | B12: =IRR(D12:K12) ->  | D12: =D10+D11 -> 0 | E12: =E10+E11 -> 0 | F12: 0 | G12: 0 | H12: 0 | I12: 0 | J12: 0 | K12: 0
A14: OPERATIONS ACCOUNTING | M14: SOMME
A15: NPV | B15: IRR | C15: SUM
A16: =NPV(WACC,D16:K16) -> 0 | C16: CFCAPEX | D16: =INDIRECT($C16) -> 0 | E16: =INDIRECT($C16) -> 0 | F16: 0 | G16: 0 | H16: 0 | I16: 0 | J16: 0 | K16: 0
A17: =NPV(WACC,D17:K17) -> 0 | C17: PLPROD | D17: =INDIRECT($C17) -> 0 | E17: =INDIRECT($C17) -> 0 | F17: 0 | G17: 0 | H17: 0 | I17: 0 | J17: 0 | K17: 0
A18: =NPV(WACC,D18:K18) -> 0 | B18: =IRR(D18:K18) ->  | C18: =SUM(D18:K18) -> 0 | D18: =SUM(D16:D17) -> 0 | E18: 0 | F18: 0 | G18: 0 | H18: 0 | I18: 0 | J18: 0 | K18: 0
A19: =NPV(WACC,D19:K19) -> 0 | C19: TaxCorp | D19: =-D18*TaxCorp -> 0 | E19: =-E18*TaxCorp -> 0 | F19: =-F18*TaxCorp -> 0 | G19: =-G18*TaxCorp -> 0 | H19: =-H18*TaxCorp -> 0 | I19: =-I18*TaxCorp -> 0 | J19: 0 | K19: 0
A20: =NPV(WACC,D20:K20) -> 0 | B20: =IRR(D20:K20) ->  | C20: =SUM(D20:K20) -> 0 | D20: =D18+D19 -> 0 | E20: =E18+E19 -> 0 | F20: 0 | G20: 0 | H20: 0 | I20: 0 | J20: 0 | K20: 0
A22: PROJECT CASH FLOWS | M22: SOMME
A23: NPV | B23: IRR | C23: SUM
A24: =NPV(WACC,D24:K24) -> 20824183.63 | C24: CFBEFTAX | D24: =INDIRECT($C24) -> 70000000 | E24: =INDIRECT($C24) -> -10000000 | F24: -10000000 | G24: -10000000 | H24: -10000000 | I24: 0 | J24: 0 | K24: -30000000
A25: =NPV(WACC,D25:K25) -> 0 | C25: EQ | D25: =INDIRECT($C25) -> 0 | E25: 0 | F25: 0 | G25: 0 | H25: 0 | I25: 0 | J25: 0 | K25: 0
A26: =NPV(WACC,D26:K26) -> 20824183.63 | B26: =IRR(D26:K26) -> 0 | C26: =SUM(D26:K26) -> 0 | D26: =SUM(D24:D25) -> 70000000 | E26: -10000000 | F26: -10000000 | G26: -10000000 | H26: -10000000 | I26: 0 | J26: 0 | K26: -30000000
A27: =NPV(WACC,D27:K27) -> -5206045.907 | C27: TaxCorp | D27: =-D26*TaxCorp -> -17500000 | E27: 2500000 | F27: 2500000 | G27: 2500000 | H27: 2500000 | I27: 0 | J27: 0 | K27: 7500000
A28: =NPV(WACC,D28:K28) -> 15618137.72 | B28: =IRR(D28:K28) -> -2.220446049e-16 | C28: =SUM(D28:K28) -> 0 | D28: =D26+D27 -> 52500000 | E28: =E26+E27 -> -7500000 | F28: -7500000 | G28: -7500000 | H28: -7500000 | I28: 0 | J28: 0 | K28: -22500000
A30: PROJECT ACCOUNTING | M30: SOMME
A31: NPV | B31: IRR | C31: SUM
A32: =NPV(WACC,D32:K32) -> 0 | B32: =IRR(D32:K32) ->  | C32: PLBEFTAX | D32: =INDIRECT($C32) -> 0 | E32: 0 | F32: 0 | G32: 0 | H32: 0 | I32: 0 | J32: 0 | K32: 0
A33: =NPV(WACC,D33:K33) -> 0 | C33: EQ | D33: 0 | E33: 0 | F33: 0 | G33: 0 | H33: 0 | I33: 0 | J33: 0 | K33: 0
A34: =NPV(WACC,D34:K34) -> 0 | B34: =IRR(D34:K34) ->  | C34: =SUM(D34:K34) -> 0 | D34: =D32+D33 -> 0 | E34: =E32+E33 -> 0 | F34: 0 | G34: 0 | H34: 0 | I34: 0 | J34: 0 | K34: 0
A35: =NPV(WACC,D35:K35) -> 0 | C35: TaxCorp | D35: =-D34*TaxCorp -> 0 | E35: 0 | F35: 0 | G35: 0 | H35: 0 | I35: 0 | J35: 0 | K35: 0
A36: =NPV(WACC,D36:K36) -> 0 | B36: =IRR(D36:K36) ->  | C36: =SUM(D36:K36) -> 0 | D36: =D34+D35 -> 0 | E36: =E34+E35 -> 0 | F36: 0 | G36: 0 | H36: 0 | I36: 0 | J36: 0 | K36: 0
A38: ROE
A39: Equity
A40: =NPV(WACC,D40:K40) -> 8851670.578 | B40: =A40/$A$68 ->  | C40: EQUITY | D40: =INDIRECT($C40) -> 20000000 | E40: 0 | F40: 0 | G40: 0 | H40: 0 | I40: 0 | J40: 0 | K40: -20000000 | M40: =SUM(D40:K40) -> 0
A41: =NPV(WACC,D41:K41) -> 0 | C41: DIVIDENDPAY | D41: 0 | E41: 0 | F41: 0 | G41: 0 | H41: 0 | I41: 0 | J41: 0 | K41: 0 | M41: =SUM(D41:K41) -> 0
A42: =A40+A41 -> 8851670.578 | B42: =IRR(D42:K42) -> 0 | C42: =SUM(D42:K42) -> 0 | D42: =SUM(D40:D41) -> 20000000 | E42: 0 | F42: 0 | G42: 0 | H42: 0 | I42: 0 | J42: 0 | K42: -20000000 | M42: =SUM(D42:K42) -> 0
A44: DEBT RETURN
A45: DEBT
A46: =NPV(WACC,D46:K46) -> 11972513.05 | C46: CAPFI | D46: =INDIRECT($C46) -> 50000000 | E46: -10000000 | F46: -10000000 | G46: -10000000 | H46: -10000000 | I46: 0 | J46: 0 | K46: -10000000 | M46: =SUM(D46:K46) -> 0
A47: =NPV(WACC,D47:K47) -> 0 | C47: INTLT | D47: 0 | E47: 0 | F47: 0 | G47: 0 | H47: 0 | I47: 0 | J47: 0 | K47: 0 | M47: =SUM(D47:K47) -> 0
A48: =A46+A47 -> 11972513.05 | B48: =IRR(D48:K48) -> 0 | C48: =SUM(D48:K48) -> 0 | D48: =IF(An<>0,D46+D47,0) -> 50000000 | E48: -10000000 | F48: -10000000 | G48: -10000000 | H48: -10000000 | I48: 0 | J48: 0 | K48: -10000000 | M48: =SUM(D48:K48) -> 0
A49: BANK ACCOUNTS
A50: =NPV(WACC,D50:K50) -> -20824183.63 | C50: CF | D50: =-INDIRECT($C50) -> -70000000 | E50: 10000000 | F50: 10000000 | G50: 10000000 | H50: 10000000 | I50: 0 | J50: 0 | K50: 30000000 | M50: =SUM(D50:K50) -> 0
A51: =NPV(WACC,D51:K51) -> 0 | C51: INTST | D51: =INDIRECT($C51) -> 0 | E51: 0 | F51: 0 | G51: 0 | H51: 0 | I51: 0 | J51: 0 | K51: 0 | M51: =SUM(D51:K51) -> 0
A52: =A50+A51 -> -20824183.63 | B52: =IF(ISERR(IRR(D52:K52)),"",IRR(D52:K52)) -> 0 | C52: =SUM(D52:K52) -> 0 | D52: =SUM(D50:D51) -> -70000000 | E52: 10000000 | F52: 10000000 | G52: 10000000 | H52: 10000000 | I52: 0 | J52: 0 | K52: 30000000 | M52: =SUM(D52:K52) -> 0
A53: DEBT
A54: =NPV(WACC,D54:K54) -> -8851670.578 | C54: DT CF CFDSCR | D54: =D46+D50 -> -20000000 | E54: =E46+E50 -> 0 | F54: 0 | G54: 0 | H54: 0 | I54: 0 | J54: 0 | K54: 20000000 | M54: =SUM(D54:K54) -> 0
A55: =NPV(WACC,D55:K55) -> 0 | C55: INTST INTLT | D55: =D47+D51 -> 0 | E55: =E47+E51 -> 0 | F55: 0 | G55: 0 | H55: 0 | I55: 0 | J55: 0 | K55: 0 | M55: =SUM(D55:K55) -> 0
A56: =A54+A55 -> -8851670.578 | B56: =IRR(D56:K56) -> 0 | C56: =SUM(D56:K56) -> 0 | D56: =SUM(D54:D55) -> -20000000 | E56: 0 | F56: 0 | G56: 0 | H56: 0 | I56: 0 | J56: 0 | K56: 20000000 | M56: =SUM(D56:K56) -> 0
C57: TaxCorp | D57: =-D55*TaxCorp -> 0 | E57: 0 | F57: 0 | G57: 0 | H57: 0 | I57: 0 | J57: 0 | K57: 0 | M57: =SUM(D57:K57) -> 0
A58: =A56+A57 -> -8851670.578 | B58: =IRR(D58:K58) -> 0 | C58: =SUM(D58:K58) -> 0 | D58: =D56+D57 -> -20000000 | E58: =E56+E57 -> 0 | F58: 0 | G58: 0 | H58: 0 | I58: 0 | J58: 0 | K58: 20000000 | M58: =SUM(D58:K58) -> 0
A60: FINANCE - WACC
A61: NPV | B61: IRR | C61: SUM
A62: =NPV(WACC,D62:K62) -> -8851670.578 | C62: FINANCE | D62: =D58 -> -20000000 | E62: =E58 -> 0 | F62: 0 | G62: 0 | H62: 0 | I62: 0 | J62: 0 | K62: 20000000 | M62: =SUM(D62:K62) -> 0
A63: =NPV(WACC,D63:K63) -> 8851670.578 | C63: EQUITY | D63: =D42 -> 20000000 | E63: 0 | F63: 0 | G63: 0 | H63: 0 | I63: 0 | J63: 0 | K63: -20000000 | M63: =SUM(D63:K63) -> 0
A64: =A62+A63 -> 0 | B64: =IRR(D64:K64) ->  | C64: =SUM(D64:K64) -> 0 | D64: =D62+D63 -> 0 | E64: =E62+E63 -> 0 | F64: 0 | G64: 0 | H64: 0 | I64: 0 | J64: 0 | K64: 0 | M64: =SUM(D64:K64) -> 0
A66: ECONOMIC COSTS | M66: SOMME
A67: NPV
A68: =-NPV(WACC,D68:K68) -> 0 | C68: PRODUCTION | D68: =-INDIRECT($C68) -> 0 | E68: 0 | F68: 0 | G68: 0 | H68: 0 | I68: 0 | J68: 0 | K68: 0
A70: COSTS BEFORE TAXES
A71: NPV | B71: UNIT COST | C71: SUM
A72: =NPV(WACC,D72:K72) -> 0 | B72: =A72/$A$68 ->  | C72: REVENUES | D72: 0 | E72: 0 | F72: 0 | G72: 0 | H72: 0 | I72: 0 | J72: 0 | K72: 0 | M72: =SUM(D72:K72) -> 0
A73: =NPV(WACC,D73:K73) -> 0 | B73: =A73/$A$68 ->  | C73: COST | D73: 0 | E73: 0 | F73: 0 | G73: 0 | H73: 0 | I73: 0 | J73: 0 | K73: 0 | M73: =SUM(D73:K73) -> 0
A74: =NPV(WACC,D74:K74) -> 0 | B74: =A74/$A$68 ->  | C74: CFCAPEX | D74: =INDIRECT($C74) -> 0 | E74: 0 | F74: 0 | G74: 0 | H74: 0 | I74: 0 | J74: 0 | K74: 0 | M74: =SUM(D74:K74) -> 0
A75: =SUM(A72:A74) -> 0 | B75: =IRR(D75:K75) ->  | C75: =SUM(D75:K75) -> 0 | D75: =SUM(D72:D74) -> 0 | E75: 0 | F75: 0 | G75: 0 | H75: 0 | I75: 0 | J75: 0 | K75: 0
A76: =NPV(WACC,D76:K76) -> 0 | B76: =A76/$A$68 ->  | C76: WCVAR | D76: 0 | E76: 0 | F76: 0 | G76: 0 | H76: 0 | I76: =INDIRECT($C76) -> 0 | J76: 0 | K76: 0 | M76: =SUM(D76:K76) -> 0
A77: =A75+A76 -> 0 | B77: =IRR(D77:K77) ->  | C77: =SUM(D77:K77) -> 0 | D77: =D75+D76 -> 0 | E77: =E75+E76 -> 0 | F77: 0 | G77: 0 | H77: 0 | I77: 0 | J77: 0 | K77: 0
A78: =NPV(WACC,D78:K78) -> 0 | B78: =A78/$A$68 ->  | C78: TAXCOPAY | D78: =INDIRECT($C78) -> 0 | E78: =INDIRECT($C78) -> 0 | F78: 0 | G78: 0 | H78: 0 | I78: 0 | J78: 0 | K78: 0 | M78: =SUM(D78:K78) -> 0
A79: =A77+A78 -> 0 | B79: =IRR(D79:K79) ->  | C79: =SUM(D79:K79) -> 0 | D79: =D77+D78 -> 0 | E79: =E77+E78 -> 0 | F79: 0 | G79: 0 | H79: 0 | I79: 0 | J79: 0 | K79: 0
A80: =NPV(WACC,D80:K80) -> -8851670.578 | B80: =A80/$A$68 ->  | C80: DEBT | D80: =D56 -> -20000000 | E80: 0 | F80: 0 | G80: 0 | H80: 0 | I80: 0 | J80: 0 | K80: 20000000
A81: =NPV(WACC,D81:K81) -> 8851670.578 | B81: =A81/$A$68 ->  | C81: EQUITY | D81: =D42 -> 20000000 | E81: 0 | F81: 0 | G81: 0 | H81: 0 | I81: 0 | J81: 0 | K81: -20000000
A82: =SUM(A79:A81) -> 0 | C82: =SUM(D82:K82) -> 0 | D82: =SUM(D79:D81) -> 0 | E82: =SUM(E79:E81) -> 0 | F82: 0 | G82: 0 | H82: 0 | I82: 0 | J82: 0 | K82: 0
A84: COSTS AFTER TAXES
A85: NPV | B85: UNIT COST | C85: SUM
A86: FLOWS AFTER TAXES
A87: =NPV(WACC,D87:K87) -> 0 | B87: =A87/$A$68 ->  | C87: REVENUES | D87: =INDIRECT($C87)*(1-TaxCorp) -> 0 | E87: 0 | F87: 0 | G87: 0 | H87: 0 | I87: 0 | J87: 0 | K87: 0
A88: =NPV(WACC,D88:K88) -> 0 | B88: =A88/$A$68 ->  | C88: COST | D88: 0 | E88: 0 | F88: 0 | G88: 0 | H88: 0 | I88: 0 | J88: 0 | K88: 0
A89: =NPV(WACC,D89:K89) -> 0 | B89: =A89/$A$68 ->  | C89: AMORT | D89: =INDIRECT($C89)*(-TaxCorp) -> 0 | E89: 0 | F89: 0 | G89: 0 | H89: 0 | I89: 0 | J89: 0 | K89: 0
A90: =NPV(WACC,D90:K90) -> 56806320.98 | C90: CAPEX | D90: =INDIRECT($C90) -> 40000000 | E90: 10000000 | F90: 10000000 | G90: 0 | H90: 0 | I90: 0 | J90: 0 | K90: 10000000
A91: =NPV(WACC,D91:K91) -> 0 | C91: WCVAR | D91: 0 | E91: 0 | F91: 0 | G91: 0 | H91: 0 | I91: 0 | J91: 0 | K91: 0
B92: =IRR(D92:K92) ->  | C92: =SUM(D92:K92) -> 70000000 | D92: =SUM(D87:D91) -> 40000000 | E92: 10000000 | F92: 10000000 | G92: 0 | H92: 0 | I92: 0 | J92: 0 | K92: 10000000
A93: =NPV(WACC,D93:K93) -> -8851670.578 | B93: =A93/$A$68 ->  | C93: DEBT | D93: =D58 -> -20000000 | E93: 0 | F93: 0 | G93: 0 | H93: 0 | I93: 0 | J93: 0 | K93: 20000000
A94: =NPV(WACC,D94:K94) -> 8851670.578 | B94: =A94/$A$68 ->  | C94: EQUITY | D94: =D42 -> 20000000 | E94: 0 | F94: 0 | G94: 0 | H94: 0 | I94: 0 | J94: 0 | K94: -20000000
A95: =-NPV(WACC,D95:K95) -> -56806320.98 | B95: =A95/$A$68 ->  | C95: =SUM(D95:K95) -> 70000000 | D95: =SUM(D92:D94) -> 40000000 | E95: =SUM(E92:E94) -> 10000000 | F95: 10000000 | G95: 0 | H95: 0 | I95: 0 | J95: 0 | K95: 10000000
A96: =SUM(A87:A95) -> 0 | B96: (last, wc due to shifts in corporate taxes)
A99: CAPITALISED FLOWS BEFORE TAXES | D99: =D77 -> 0 | E99: =IF(D99>0,1+TxPlacement,1-TxDecouvert)*D99+E77 -> 0 | F99: 0 | G99: 0 | H99: 0 | I99: 0 | J99: 0 | K99: 0
B100: pay back | C100: =SUM(D100:K100) -> 0 | E100: =IF(D99*E99<0,E4,"") -> 
A102: CAPITALISED FLOWS AFTER TAXES | D102: =D79 -> 0 | E102: =IF(D102>0,1+TxPlacement,1-TxDecouvert)*D102+E79 -> 0 | F102: 0 | G102: 0 | H102: 0 | I102: 0 | J102: 0 | K102: 0
B103: pay back | C103: =SUM(D103:K103) -> 0 | E103: =IF(D102*E102<0,E4,"") -> 
A105: PERMANENT PROJECT AFTER 5 YEARS
A107: REVENUES | B107: =[2]MODELING!AG225 -> 65390.68995
A108: COSTS | B108: =[2]MODELING!AG226 -> -16379.57634
A109: TAXES | B109: =[2]MODELING!AG227 -> -6178.690827
B110: =SUM(B107:B109) -> 42832.42279
A111: TAXES CORP | B111: =-B110*INDEX(TaxCorp,1) -> -10708.1057
A112: NET PROFIT | B112: =B110+B111 -> 32124.31709
A114: inflation | B114: =INDEX(RateInflation,1) -> 0.03
A115: DF | B115: =INDEX(DF,1) -> 0.1
A116: NPV | B116: =B112/(B115-B114)/(1.08)^(30) -> 45606.12775

Sheet SIMULATIONS
A1: SCENARII TABLE | V1: OUTPUT TABLE
B2: 1 | C2: 2 | D2: 3 | E2: 4 | F2: 5 | G2: 6 | H2: 7 | I2: 8 | J2: 9 | K2: 10 | L2: 11 | M2: 12 | N2: 13 | O2: 14 | P2: 15 | Q2: 16 | R2: 17 | S2: 18 | T2: 19 | V2: 1 | W2: 2 | X2: 3 | Y2: 4 | Z2: 5 | AA2: 6 | AB2: 7 | AC2: 8 | AD2: 9 | AE2: 10 | AF2: 11 | AG2: 12 | AH2: 13 | AI2: 14 | AJ2: 15 | AK2: 16 | AL2: 17 | AM2: 18 | AN2: 19 | AO2: 20 | AP2: 21 | AQ2: 22 | AR2: 23 | AS2: 24 | AT2: 25
B3: INFLATION RATE | C3: PRICE OIL | D3: CAPACITY | E3: COSTFIX | F3: COSTVAR | G3: AMOCONS | H3: AMOPROD | I3: AMOTERM | J3: DELAYSCASHIN | K3: DELAYSCASHOUT | L3: YEARDEBT | M3: RATE DEBT | N3: RATEDEPOSIT | O3: RATEFUNDING | P3: TAXCORP | Q3: RATERESERVE | R3: YEARRESERVE | S3: RATEDIVIDEND | T3: DF | V3: OPERATIONS CASH FLOW BEF TAXES | W3: OPEARATIONS CASH FLOW AFTER TAXES | X3: OPERATIONS ACCOUNTING BEF TAXES | Y3: OPERATIONS ACCOUNTING AFTER TAXES | Z3: PROJECT ACCOUNTING BEFORE TAXES | AA3: PROJECT ACCOUNTING AFTER TAXES | AB3: ROE | AC3: DEBT RETURN | AD3: FINANCE - WACC | AE3: PLCR Mini | AF3: PLCR Average | AG3: LLCR Mini | AH3: LLCR Average | AI3: DSCR Mini | AJ3: DSCR Average | AK3: Pay Back | AL3: OPERATIONS CASH FLOW BEF TAXES | AM3: OPEARATIONS CASH FLOW AFTER TAXES | AN3: OPERATIONS ACCOUNTING BEF TAXES | AO3: OPERATIONS ACCOUNTING AFTER TAXES | AP3: PROJECT ACCOUNTING BEFORE TAXES | AQ3: PROJECT ACCOUNTING AFTER TAXES | AR3: ROE NPV | AS3: DEBT NPV | AT3: FINANCE NPV
U4: 1 | V4: =INDEX(INTRODUCTION!$E$11:$E$35,SIMULATIONS!V2) ->  | W4: =INDEX(INTRODUCTION!$E$11:$E$35,SIMULATIONS!W2) ->  | X4: =INDEX(INTRODUCTION!$E$11:$E$35,SIMULATIONS!X2) ->  | Y4: =INDEX(INTRODUCTION!$E$11:$E$35,SIMULATIONS!Y2) ->  | Z4: =INDEX(INTRODUCTION!$E$11:$E$35,SIMULATIONS!Z2) ->  | AA4: =INDEX(INTRODUCTION!$E$11:$E$35,SIMULATIONS!AA2) ->  | AB4: =INDEX(INTRODUCTION!$E$11:$E$35,SIMULATIONS!AB2) -> 0 | AC4: =INDEX(INTRODUCTION!$E$11:$E$35,SIMULATIONS!AC2) -> 0 | AD4: =INDEX(INTRODUCTION!$E$11:$E$35,SIMULATIONS!AD2) ->  | AE4: =INDEX(INTRODUCTION!$E$11:$E$35,SIMULATIONS!AE2) ->  | AF4: =INDEX(INTRODUCTION!$E$11:$E$35,SIMULATIONS!AF2) ->  | AG4: =INDEX(INTRODUCTION!$E$11:$E$35,SIMULATIONS!AG2) ->  | AH4: =INDEX(INTRODUCTION!$E$11:$E$35,SIMULATIONS!AH2) ->  | AI4: =INDEX(INTRODUCTION!$E$11:$E$35,SIMULATIONS!AI2) ->  | AJ4: =INDEX(INTRODUCTION!$E$11:$E$35,SIMULATIONS!AJ2) ->  | AK4: =INDEX(INTRODUCTION!$E$11:$E$35,SIMULATIONS!AK2) -> 0 | AL4: =INDEX(INTRODUCTION!$E$11:$E$35,SIMULATIONS!AL2) -> 0 | AM4: =INDEX(INTRODUCTION!$E$11:$E$35,SIMULATIONS!AM2) -> 0 | AN4: =INDEX(INTRODUCTION!$E$11:$E$35,SIMULATIONS!AN2) -> 0 | AO4: =INDEX(INTRODUCTION!$E$11:$E$35,SIMULATIONS!AO2) -> 0 | AP4: =INDEX(INTRODUCTION!$E$11:$E$35,SIMULATIONS!AP2) -> 0 | AQ4: =INDEX(INTRODUCTION!$E$11:$E$35,SIMULATIONS!AQ2) -> 0 | AR4: =INDEX(INTRODUCTION!$E$11:$E$35,SIMULATIONS!AR2) -> 8851670.578 | AS4: =INDEX(INTRODUCTION!$E$11:$E$35,SIMULATIONS!AS2) -> 11972513.05 | AT4: =INDEX(INTRODUCTION!$E$11:$E$35,SIMULATIONS!AT2) -> 0
A5: 1 | B5: 0.03 | C5: 18 | D5: 365 | E5: 10000000 | F5: 4 | G5: 5 | H5: 4 | I5: 1 | J5: 30 | K5: 7 | L5: 5 | M5: 0.07 | N5: 0.05 | O5: 0.1 | P5: 0.25 | Q5: 1 | R5: 2 | S5: 1 | T5: 0.1 | U5: 1 | AK5: 0 | AL5: 0 | AM5: 0 | AN5: 0 | AO5: 0 | AP5: 0 | AQ5: 0 | AR5: 0 | AS5: 0 | AT5: 0
A6: 2 | B6: =B5 -> 0.03 | C6: =C5 -> 18 | D6: 365 | E6: 10000000 | F6: 4 | G6: 5 | H6: 4 | I6: 1 | J6: =J5 -> 30 | K6: 7 | L6: 5 | M6: 0.07 | N6: 0.05 | O6: 0.1 | P6: =P5 -> 0.25 | Q6: 1 | R6: 2 | S6: =S5 -> 1 | T6: 0.12 | U6: 2 | AK6: 0 | AL6: 0 | AM6: 0 | AN6: 0 | AO6: 0 | AP6: 0 | AQ6: 0 | AR6: 0 | AS6: 0 | AT6: 0
A7: 3 | B7: =B6 -> 0.03 | C7: 18 | D7: 365 | E7: 10000000 | F7: 4 | G7: 5 | H7: 4 | I7: 1 | J7: 30 | K7: 7 | L7: 5 | M7: 0.07 | N7: 0.05 | O7: 0.1 | P7: =P6 -> 0.25 | Q7: 1 | R7: 2 | S7: 1 | T7: 0.08 | U7: 3 | AK7: 0 | AL7: 0 | AM7: 0 | AN7: 0 | AO7: 0 | AP7: 0 | AQ7: 0 | AR7: 0 | AS7: 0 | AT7: 0
A8: 4 | B8: =B7 -> 0.03 | C8: 18 | D8: 365 | E8: 10000000 | F8: 5 | G8: 5 | H8: 4 | I8: 1 | J8: 30 | K8: 7 | L8: 5 | M8: 0.07 | N8: 0.05 | O8: 0.1 | P8: =P7 -> 0.25 | Q8: 1 | R8: 2 | S8: 1 | T8: 0.1 | U8: 4 | AK8: 0 | AL8: 0 | AM8: 0 | AN8: 0 | AO8: 0 | AP8: 0 | AQ8: 0 | AR8: 0 | AS8: 0 | AT8: 0
A9: 5 | B9: =B8 -> 0.03 | C9: 18 | D9: 365 | E9: 8000000 | F9: 4 | G9: 5 | H9: 4 | I9: 1 | J9: 30 | K9: 7 | L9: 5 | M9: 0.07 | N9: 0.05 | O9: 0.1 | P9: 0.3 | Q9: 1 | R9: 2 | S9: 1 | T9: 0.1 | U9: 5 | AK9: 0 | AL9: 0 | AM9: 0 | AN9: 0 | AO9: 0 | AP9: 0 | AQ9: 0 | AR9: 0 | AS9: 0 | AT9: 0
A10: 6 | B10: 0.03 | C10: 18 | D10: 365 | E10: 10000000 | F10: 4 | G10: 5 | H10: 4 | I10: 1 | J10: 30 | K10: 7 | L10: 5 | M10: 0.08 | N10: 0.05 | O10: 0.1 | P10: =P9 -> 0.3 | Q10: 1 | R10: 2 | S10: 1 | T10: 0.1 | U10: 6 | AK10: 0 | AL10: 0 | AM10: 0 | AN10: 0 | AO10: 0 | AP10: 0 | AQ10: 0 | AR10: 0 | AS10: 0 | AT10: 0
A11: 7 | B11: 0.03 | C11: 19 | D11: 365 | E11: 10000000 | F11: 4 | G11: 5 | H11: 4 | I11: 1 | J11: 30 | K11: 7 | L11: 5 | M11: 0.07 | N11: 0.05 | O11: 0.1 | P11: =P10 -> 0.3 | Q11: 1 | R11: =R10 -> 2 | S11: 1 | T11: 0.1 | U11: 7 | AK11: 0 | AL11: 0 | AM11: 0 | AN11: 0 | AO11: 0 | AP11: 0 | AQ11: 0 | AR11: 0 | AS11: 0 | AT11: 0
A12: 8 | B12: 0.03 | C12: 20 | D12: 365 | E12: 10000000 | F12: 4 | G12: 5 | H12: 4 | I12: 1 | J12: 30 | K12: 7 | L12: 5 | M12: 0.07 | N12: 0.05 | O12: 0.1 | P12: =P11 -> 0.3 | Q12: 1 | R12: =R11 -> 2 | S12: 1 | T12: 0.1 | U12: 8 | AK12: 0 | AL12: 0 | AM12: 0 | AN12: 0 | AO12: 0 | AP12: 0 | AQ12: 0 | AR12: 0 | AS12: 0 | AT12: 0
